Workbook

Sheet District en Gewestelijke finale
C1: KONINKLIJKE BELGISCHE BILJARTBOND
C2: VZW - Zetel "Café Marie Thérèse" - Martelarenplein, 1 - 3000 Leuven
C3: Gewest Beide Vlaanderen
A4: District Waasland | D4: Kampioenschap van België | K4: ="Sportjaar "&IF(MONTH(TODAY())<8,YEAR(TODAY())-1&"-"&YEAR(TODAY())&" ",YEAR(TODAY())&"-"&YEAR(TODAY())+1&" ") -> Sportjaar 2018-2019
A5: 4° KLASSE DRIEBANDEN MATCHBILJART
A6: GEWESTELIJKE FINALE
A8: Te spelen punten : | D8: 18 | G8: Gemiddelde : | H8: 0.335 | I8: Promotie: | J8: 0.405
A10: Datum: | C10: 30-31/03/2019 | F10: Lokaal: | G10: BC QUALITY ZELE | J10: Formaat: | K10: 2,84m
A12: Speler : | B12: MOEYKENS Biacio | F12: Club: | G12: =IF(B12<>"",VLOOKUP(B12,spelers,2),"") -> BC DE GOUDEN SLEUTEL | J12: Lic: | K12: =IF(B12<>"",VLOOKUP(B12,spelers,3),"") -> 9419
F13: P | G13: CAR | H13: B | I13: GEM | J13: HR | K13: Plaats
A14: 1 | B14: MUS Hendrik | E14: =IF(I14<MINGEM,"OG",IF(I14>=PROMGEM,"PROM","MG")) -> PROM | F14: 2 | G14: 18 | H14: 43 | I14: =IF(H14>0,ROUNDDOWN(G14/H14,3),0) -> 0.418 | J14: 3
A15: 2 | B15: VAN GOETHEM Wim | E15: =IF(I15<MINGEM,"OG",IF(I15>=PROMGEM,"PROM","MG")) -> OG | F15: 0 | G15: 11 | H15: 33 | I15: =IF(H15>0,ROUNDDOWN(G15/H15,3),0) -> 0.333 | J15: 2
A16: 3 | B16: DE HERTOG Gert-Jan | E16: =IF(I16<MINGEM,"OG",IF(I16>=PROMGEM,"PROM","MG")) -> PROM | F16: 2 | G16: 18 | H16: 22 | I16: 0.818 | J16: 3
A17: 4 | B17: VERCAEMERE Jaak | E17: =IF(I17<MINGEM,"OG",IF(I17>=PROMGEM,"PROM","MG")) -> OG | F17: 0 | G17: 14 | H17: 42 | I17: 0.333 | J17: 2
A18: Totaal | E18: =IF(I18<MINGEM,"OG",IF(I18>=PROMGEM,"PROM","MG")) -> PROM | F18: =SUM(F14:F17) -> 4 | G18: =G14+G15+G16+G17 -> 61 | H18: =H14+H15+H16+H17 -> 140 | I18: =IF(H18>0,ROUNDDOWN(G18/H18,3),) -> 0.435 | J18: =MAX(J14:J17) -> 3 | K18: =RANK(L18,L12:L58,0) -> 2 | L18: =IF(H18>0,IF(I18>=MINGEM,200000,100000)+(F18*10000)+(I18*1000)+J18,0) -> 240438
A20: Speler : | B20: VERCAEMERE Jaak | F20: Club: | G20: =IF(B20<>"",VLOOKUP(B20,spelers,2),"") -> Kon. BC DE GILDE HOGER OP | J20: Lic: | K20: =IF(B20<>"",VLOOKUP(B20,spelers,3),"") -> 8088
A21: kampioen | G21: CAR | H21: B | I21: GEM | J21: HR | K21: Plaats
A22: 1 | B22: MUS Hendrik | E22: =IF(I22<MINGEM,"OG",IF(I22>=PROMGEM,"PROM","MG")) -> PROM | F22: 2 | G22: 18 | H22: 30 | I22: =IF(H22>0,ROUNDDOWN(G22/H22,3),0) -> 0.6 | J22: 2
A23: 2 | B23: DE HERTOG Gert-Jan | E23: =IF(I23<MINGEM,"OG",IF(I23>=PROMGEM,"PROM","MG")) -> PROM | F23: 2 | G23: 18 | H23: 31 | I23: 0.58 | J23: 3
A24: 3 | B24: VAN GOETHEM Wim | E24: =IF(I24<MINGEM,"OG",IF(I24>=PROMGEM,"PROM","MG")) -> PROM | F24: 2 | G24: 18 | H24: 39 | I24: 0.461 | J24: 3
A25: 4 | B25: MOEYKENS Biacio | E25: =IF(I25<MINGEM,"OG",IF(I25>=PROMGEM,"PROM","MG")) -> PROM | F25: 2 | G25: 18 | H25: 42 | I25: 0.428 | J25: 2
A26: Totaal | E26: =IF(I26<MINGEM,"OG",IF(I26>=PROMGEM,"PROM","MG")) -> PROM | F26: =SUM(F22:F25) -> 8 | G26: =G22+G23+G24+G25 -> 72 | H26: =H22+H23+H24+H25 -> 142 | I26: =IF(H26>0,ROUNDDOWN(G26/H26,3),) -> 0.507 | J26: =MAX(J22:J25) -> 3 | K26: =RANK(L26,L13:L58,0) -> 1 | L26: =IF(H26>0,IF(I26>=MINGEM,200000,100000)+(F26*10000)+(I26*1000)+J26,0) -> 280510
A28: Speler : | B28: VAN GOETHEM Wim | F28: Club: | G28: =IF(B28<>"",VLOOKUP(B28,spelers,2),"") -> BC QUALITY | J28: Lic: | K28: =IF(B28<>"",VLOOKUP(B28,spelers,3),"") -> 9970
F29: P | G29: CAR | H29: B | I29: GEM | J29: HR | K29: Plaats
A30: 1 | B30: DE HERTOG Gert-Jan | E30: =IF(I30<MINGEM,"OG",IF(I30>=PROMGEM,"PROM","MG")) -> OG | F30: 0 | G30: 15 | H30: 53 | I30: =IF(H30>0,ROUNDDOWN(G30/H30,3),0) -> 0.283 | J30: 4
A31: 2 | B31: MOEYKENS Biacio | E31: =IF(I31<MINGEM,"OG",IF(I31>=PROMGEM,"PROM","MG")) -> PROM | F31: 2 | G31: 18 | H31: 33 | I31: 0.545 | J31: 2
A32: 3 | B32: MUS Hendrik | E32: =IF(I32<MINGEM,"OG",IF(I32>=PROMGEM,"PROM","MG")) -> MG | F32: 2 | G32: 18 | H32: 52 | I32: 0.346 | J32: 3
A33: 4 | B33: VERCAEMERE Jaak | E33: =IF(I33<MINGEM,"OG",IF(I33>=PROMGEM,"PROM","MG")) -> OG | F33: 0 | G33: 9 | H33: 39 | I33: 0.23 | J33: 2
A34: Totaal | E34: =IF(I34<MINGEM,"OG",IF(I34>=PROMGEM,"PROM","MG")) -> MG | F34: =SUM(F30:F33) -> 4 | G34: =G30+G31+G32+G33 -> 60 | H34: =H30+H31+H32+H33 -> 177 | I34: =IF(H34>0,ROUNDDOWN(G34/H34,3),) -> 0.338 | J34: =MAX(J30:J33) -> 4 | K34: =RANK(L34,L13:L58,0) -> 3 | L34: =IF(H34>0,IF(I34>=MINGEM,200000,100000)+(F34*10000)+(I34*1000)+J34,0) -> 240342
A36: Speler : | B36: DE HERTOG Gert-Jan | F36: Club: | G36: =IF(B36<>"",VLOOKUP(B36,spelers,2),"") -> Kon. BC ONS HUIS | J36: Lic: | K36: =IF(B36<>"",VLOOKUP(B36,spelers,3),"") -> 9055
F37: P | G37: CAR | H37: B | I37: GEM | J37: HR | K37: Plaats
A38: 1 | B38: VAN GOETHEM Wim | E38: =IF(I38<MINGEM,"OG",IF(I38>=PROMGEM,"PROM","MG")) -> MG | F38: 2 | G38: 18 | H38: 53 | I38: =IF(H38>0,ROUNDDOWN(G38/H38,3),0) -> 0.339 | J38: 2
A39: 2 | B39: VERCAEMERE Jaak | E39: =IF(I39<MINGEM,"OG",IF(I39>=PROMGEM,"PROM","MG")) -> OG | F39: 0 | G39: 4 | H39: 31 | I39: 0.129 | J39: 1
A40: 3 | B40: MOEYKENS Biacio | E40: =IF(I40<MINGEM,"OG",IF(I40>=PROMGEM,"PROM","MG")) -> OG | F40: 0 | G40: 6 | H40: 22 | I40: 0.272 | J40: 2
A41: 4 | B41: MUS Hendrik | E41: =IF(I41<MINGEM,"OG",IF(I41>=PROMGEM,"PROM","MG")) -> OG | F41: 0 | G41: 16 | H41: 65 | I41: 0.246 | J41: 2
A42: Totaal | E42: =IF(I42<MINGEM,"OG",IF(I42>=PROMGEM,"PROM","MG")) -> OG | F42: =SUM(F38:F41) -> 2 | G42: =G38+G39+G40+G41 -> 44 | H42: =H38+H39+H40+H41 -> 171 | I42: =IF(H42>0,ROUNDDOWN(G42/H42,3),) -> 0.257 | J42: =MAX(J38:J41) -> 2 | K42: =RANK(L42,L13:L58,0) -> 5 | L42: =IF(H42>0,IF(I42>=MINGEM,200000,100000)+(F42*10000)+(I42*1000)+J42,0) -> 120259
A44: Speler : | B44: MUS Hendrik | F44: Club: | G44: =IF(B44<>"",VLOOKUP(B44,spelers,2),"") -> Kon. BRUGSE BC | J44: Lic: | K44: =IF(B44<>"",VLOOKUP(B44,spelers,3),"") -> 9257
F45: P | G45: CAR | H45: B | I45: GEM | J45: HR | K45: Plaats
A46: 1 | B46: VERCAEMERE Jaak | E46: =IF(I46<MINGEM,"OG",IF(I46>=PROMGEM,"PROM","MG")) -> OG | F46: 0 | G46: 7 | H46: 30 | I46: =IF(H46>0,ROUNDDOWN(G46/H46,3),0) -> 0.233 | J46: 3
A47: 2 | B47: MOEYKENS Biacio | E47: =IF(I47<MINGEM,"OG",IF(I47>=PROMGEM,"PROM","MG")) -> OG | F47: 0 | G47: 14 | H47: 43 | I47: 0.325 | J47: 1
A48: 3 | B48: VAN GOETHEM Wim | E48: =IF(I48<MINGEM,"OG",IF(I48>=PROMGEM,"PROM","MG")) -> OG | F48: 0 | G48: 13 | H48: 52 | I48: 0.25 | J48: 3
A49: 4 | B49: DE HERTOG Gert-Jan | E49: =IF(I49<MINGEM,"OG",IF(I49>=PROMGEM,"PROM","MG")) -> OG | F49: 2 | G49: 18 | H49: 65 | I49: 0.276 | J49: 2
A50: Totaal | E50: =IF(I50<MINGEM,"OG",IF(I50>=PROMGEM,"PROM","MG")) -> OG | F50: =SUM(F46:F49) -> 2 | G50: =G46+G47+G48+G49 -> 52 | H50: =H46+H47+H48+H49 -> 190 | I50: =IF(H50>0,ROUNDDOWN(G50/H50,3),) -> 0.273 | J50: =MAX(J46:J49) -> 3 | K50: =RANK(L50,L13:L58,0) -> 4 | L50: =IF(H50>0,IF(I50>=MINGEM,200000,100000)+(F50*10000)+(I50*1000)+J50,0) -> 120276
A52: Speler : | F52: Club: | G52: =IF(B52<>"",VLOOKUP(B52,spelers,2),"") ->  | J52: Lic: | K52: =IF(B52<>"",VLOOKUP(B52,spelers,3),"") -> 
F53: P | G53: CAR | H53: B | I53: GEM | J53: HR | K53: Plaats
A54: 1 | E54: =IF(I54<MINGEM,"OG",IF(I54>=PROMGEM,"PROM","MG")) -> OG | I54: =IF(H54>0,ROUNDDOWN(G54/H54,3),0) -> 0
A55: 2 | E55: =IF(I55<MINGEM,"OG",IF(I55>=PROMGEM,"PROM","MG")) -> OG | I55: 0
A56: 3 | E56: =IF(I56<MINGEM,"OG",IF(I56>=PROMGEM,"PROM","MG")) -> OG | I56: 0
A57: 4 | E57: =IF(I57<MINGEM,"OG",IF(I57>=PROMGEM,"PROM","MG")) -> OG | I57: 0
A58: Totaal | E58: =IF(I58<MINGEM,"OG",IF(I58>=PROMGEM,"PROM","MG")) -> OG | F58: =SUM(F54:F57) -> 0 | G58: =G54+G55+G56+G57 -> 0 | H58: =H54+H55+H56+H57 -> 0 | I58: =IF(H58>0,ROUNDDOWN(G58/H58,3),) -> 0 | J58: =MAX(J54:J57) -> 0 | K58: =RANK(L62,L17:L62,0) -> 6 | L58: =IF(H58>0,IF(I58>=MINGEM,200000,100000)+(F58*10000)+(I58*1000)+J58,0) -> 0
A60: EINDRANGSCHIKKING
A61: Licentie | B61: Deelnemers | E61: Status | F61: MP | G61: CAR | H61: B | I61: GEM | J61: HR | K61: Plaats
A62: =IF(K18=1,K12,IF(K26=1,K20,IF(K34=1,K28,IF(K42=1,K36,IF(K50=1,K44,IF(K58=1,K52,"")))))) -> 8088 | B62: =IF(K18=1,B12,IF(K26=1,B20,IF(K34=1,B28,IF(K42=1,B36,IF(K50=1,B44,IF(K58=1,B52,"")))))) -> VERCAEMERE Jaak | E62: =IF(K18=1,E18,IF(K26=1,E26,IF(K34=1,E34,IF(K42=1,E42,IF(K50=1,E50,IF(K58=1,E58,"")))))) -> PROM | F62: =IF(K18=1,F18,IF(K26=1,F26,IF(K34=1,F34,IF(K42=1,F42,IF(K50=1,F50,IF(K58=1,F58,"")))))) -> 8 | G62: =IF(K18=1,G18,IF(K26=1,G26,IF(K34=1,G34,IF(K42=1,G42,IF(K50=1,G50,IF(K58=1,G58,"")))))) -> 72 | H62: =IF(K18=1,H18,IF(K26=1,H26,IF(K34=1,H34,IF(K42=1,H42,IF(K50=1,H50,IF(K58=1,H58,"")))))) -> 142 | I62: =IF(K18=1,I18,IF(K26=1,I26,IF(K34=1,I34,IF(K42=1,I42,IF(K50=1,I50,IF(K58=1,I58,"")))))) -> 0.507 | J62: =IF(K18=1,J18,IF(K26=1,J26,IF(K34=1,J34,IF(K42=1,J42,IF(K50=1,J50,IF(K58=1,J58,"")))))) -> 3 | K62: 1
A63: =IF(K18=2,K12,IF(K26=2,K20,IF(K34=2,K28,IF(K42=2,K36,IF(K50=2,K44,IF(K58=2,K52,"")))))) -> 9419 | B63: =IF(K18=2,B12,IF(K26=2,B20,IF(K34=2,B28,IF(K42=2,B36,IF(K50=2,B44,IF(K58=2,B52,"")))))) -> MOEYKENS Biacio | E63: =IF(K18=2,E18,IF(K26=2,E26,IF(K34=2,E34,IF(K42=2,E42,IF(K50=2,E50,IF(K58=2,E58,"")))))) -> PROM | F63: =IF(K18=2,F18,IF(K26=2,F26,IF(K34=2,F34,IF(K42=2,F42,IF(K50=2,F50,IF(K58=2,F58,"")))))) -> 4 | G63: =IF(K18=2,G18,IF(K26=2,G26,IF(K34=2,G34,IF(K42=2,G42,IF(K50=2,G50,IF(K58=2,G58,"")))))) -> 61 | H63: =IF(K18=2,H18,IF(K26=2,H26,IF(K34=2,H34,IF(K42=2,H42,IF(K50=2,H50,IF(K58=2,H58,"")))))) -> 140 | I63: =IF(K18=2,I18,IF(K26=2,I26,IF(K34=2,I34,IF(K42=2,I42,IF(K50=2,I50,IF(K58=2,I58,"")))))) -> 0.435 | J63: =IF(K18=2,J18,IF(K26=2,J26,IF(K34=2,J34,IF(K42=2,J42,IF(K50=2,J50,IF(K58=2,J58,"")))))) -> 3 | K63: 2
A64: =IF(K18=3,K12,IF(K26=3,K20,IF(K34=3,K28,IF(K42=3,K36,IF(K50=3,K44,IF(K58=3,K52,"")))))) -> 9970 | B64: =IF(K18=3,B12,IF(K26=3,B20,IF(K34=3,B28,IF(K42=3,B36,IF(K50=3,B44,IF(K58=3,B52,"")))))) -> VAN GOETHEM Wim | E64: =IF(K18=3,E18,IF(K26=3,E26,IF(K34=3,E34,IF(K42=3,E42,IF(K50=3,E50,IF(K58=3,E58,"")))))) -> MG | F64: =IF(K18=3,F18,IF(K26=3,F26,IF(K34=3,F34,IF(K42=3,F42,IF(K50=3,F50,IF(K58=3,F58,"")))))) -> 4 | G64: =IF(K18=3,G18,IF(K26=3,G26,IF(K34=3,G34,IF(K42=3,G42,IF(K50=3,G50,IF(K58=3,G58,"")))))) -> 60 | H64: =IF(K18=3,H18,IF(K26=3,H26,IF(K34=3,H34,IF(K42=3,H42,IF(K50=3,H50,IF(K58=3,H58,"")))))) -> 177 | I64: =IF(K18=3,I18,IF(K26=3,I26,IF(K34=3,I34,IF(K42=3,I42,IF(K50=3,I50,IF(K58=3,I58,"")))))) -> 0.338 | J64: =IF(K18=3,J18,IF(K26=3,J26,IF(K34=3,J34,IF(K42=3,J42,IF(K50=3,J50,IF(K58=3,J58,"")))))) -> 4 | K64: 3
A65: =IF(K18=4,K12,IF(K26=4,K20,IF(K34=4,K28,IF(K42=4,K36,IF(K50=4,K44,IF(K58=4,K52,"")))))) -> 9257 | B65: =IF(K18=4,B12,IF(K26=4,B20,IF(K34=4,B28,IF(K42=4,B36,IF(K50=4,B44,IF(K58=4,B52,"")))))) -> MUS Hendrik | E65: =IF(K18=4,E18,IF(K26=4,E26,IF(K34=4,E34,IF(K42=4,E42,IF(K50=4,E50,IF(K58=4,E58,"")))))) -> OG | F65: =IF(K18=4,F18,IF(K26=4,F26,IF(K34=4,F34,IF(K42=4,F42,IF(K50=4,F50,IF(K58=4,F58,"")))))) -> 2 | G65: =IF(K18=4,G18,IF(K26=4,G26,IF(K34=4,G34,IF(K42=4,G42,IF(K50=4,G50,IF(K58=4,G58,"")))))) -> 52 | H65: =IF(K18=4,H18,IF(K26=4,H26,IF(K34=4,H34,IF(K42=4,H42,IF(K50=4,H50,IF(K58=4,H58,"")))))) -> 190 | I65: =IF(K18=4,I18,IF(K26=4,I26,IF(K34=4,I34,IF(K42=4,I42,IF(K50=4,I50,IF(K58=4,I58,"")))))) -> 0.273 | J65: =IF(K18=4,J18,IF(K26=4,J26,IF(K34=4,J34,IF(K42=4,J42,IF(K50=4,J50,IF(K58=4,J58,"")))))) -> 3 | K65: 4
A66: =IF(K18=5,K12,IF(K26=5,K20,IF(K34=5,K28,IF(K42=5,K36,IF(K50=5,K44,IF(K58=5,K52,"")))))) -> 9055 | B66: =IF(K18=5,B12,IF(K26=5,B20,IF(K34=5,B28,IF(K42=5,B36,IF(K50=5,B44,IF(K58=5,B52,"")))))) -> DE HERTOG Gert-Jan | E66: =IF(K18=5,E18,IF(K26=5,E26,IF(K34=5,E34,IF(K42=5,E42,IF(K50=5,E50,IF(K58=5,E58,"")))))) -> OG | F66: =IF(K18=5,F18,IF(K26=5,F26,IF(K34=5,F34,IF(K42=5,F42,IF(K50=5,F50,IF(K58=5,F58,"")))))) -> 2 | G66: =IF(K18=5,G18,IF(K26=5,G26,IF(K34=5,G34,IF(K42=5,G42,IF(K50=5,G50,IF(K58=5,G58,"")))))) -> 44 | H66: =IF(K18=5,H18,IF(K26=5,H26,IF(K34=5,H34,IF(K42=5,H42,IF(K50=5,H50,IF(K58=5,H58,"")))))) -> 171 | I66: =IF(K18=5,I18,IF(K26=5,I26,IF(K34=5,I34,IF(K42=5,I42,IF(K50=5,I50,IF(K58=5,I58,"")))))) -> 0.257 | J66: =IF(K18=5,J18,IF(K26=5,J26,IF(K34=5,J34,IF(K42=5,J42,IF(K50=5,J50,IF(K58=5,J58,"")))))) -> 2 | K66: 5
A67: =IF(K18=6,E18,IF(K26=6,E26,IF(K34=6,E34,IF(K42=6,E42,IF(K50=6,E50,IF(K58=6,E58,"")))))) -> OG | B67: =IF(K18=6,B12,IF(K26=6,B20,IF(K34=6,B28,IF(K42=6,B36,IF(K50=6,B44,IF(K58=6,B52,"")))))) -> 0 | E67: =IF(K18=6,K12,IF(K26=6,K20,IF(K34=6,K28,IF(K42=6,K36,IF(K50=6,K44,IF(K58=6,K52,"")))))) ->  | F67: =IF(K18=6,F18,IF(K26=6,F26,IF(K34=6,F34,IF(K42=6,F42,IF(K50=6,F50,IF(K58=6,F58,"")))))) -> 0 | G67: =IF(K18=6,G18,IF(K26=6,G26,IF(K34=6,G34,IF(K42=6,G42,IF(K50=6,G50,IF(K58=6,G58,"")))))) -> 0 | H67: =IF(K18=6,H18,IF(K26=6,H26,IF(K34=6,H34,IF(K42=6,H42,IF(K50=6,H50,IF(K58=6,H58,"")))))) -> 0 | I67: =IF(K18=6,I18,IF(K26=6,I26,IF(K34=6,I34,IF(K42=6,I42,IF(K50=6,I50,IF(K58=6,I58,"")))))) -> 0 | J67: =IF(K18=6,J18,IF(K26=6,J26,IF(K34=6,J34,IF(K42=6,J42,IF(K50=6,J50,IF(K58=6,J58,"")))))) -> 0 | K67: 6
A69: De winnaar van deze gewestelijke finale speelt de nationale finale in het weekend van 1 & 2 juni 2019
A70: in het gewest Beide Vlaanderen ( in het lokaal van de winnaar van deze finale)

Sheet spelerslijst
A1: NAAM Voornaam | B1: CLUB Id - Naam | C1: LICENTIE | E1: filter sorteren na aanpassing van deze lijst !
A2: DE HERTOG Gert-Jan | B2: Kon. BC ONS HUIS | C2: 9055
A3: MOEYKENS Biacio | B3: BC DE GOUDEN SLEUTEL | C3: 9419
A4: MUS Hendrik | B4: Kon. BRUGSE BC | C4: 9257
A5: VAN GOETHEM Wim | B5: BC QUALITY | C5: 9970
A6: VERCAEMERE Jaak | B6: Kon. BC DE GILDE HOGER OP | C6: 8088
